[Event "*** Titled Tuesday 3|2 Blitz"]
[Site "Chess.com"]
[Date "2017.05.02"]
[Round "10"]
[White "Rating-Schmating"]
[Black "Vegan4future"]
[Result "1/2-1/2"]
[WhiteElo "2189"]
[BlackElo "2271"]
[TimeControl "180+2"]
[EndTime "15:17:47 PDT"]
[Termination "Game drawn - insufficient material"]

1. e4 {[%clk 0:03:01.9]} 1... e5 {[%clk 0:03:00.4]} 2. Nf3 {[%clk 0:03:01.5]}
2... d6 {[%clk 0:03:00.9]} 3. d4 {[%clk 0:03:02]} 3... exd4 {[%clk 0:03:02.8]}
4. Nxd4 {[%clk 0:03:02.7]} 4... Nf6 {[%clk 0:03:04.7]} 5. Nc3 {[%clk 0:03:03.3]}
5... Be7 {[%clk 0:03:05.5]} 6. Be2 {[%clk 0:03:03.2]} 6... O-O {[%clk
0:03:06.8]} 7. Be3 {[%clk 0:03:03.9]} 7... Re8 {[%clk 0:03:08.7]} 8. O-O {[%clk
0:03:05]} 8... Bf8 {[%clk 0:03:10]} 9. Bf3 {[%clk 0:03:02.4]} 9... c5 {[%clk
0:02:50.5]} 10. Nde2 {[%clk 0:02:54.2]} 10... a6 {[%clk 0:02:03.9]} 11. a4
{[%clk 0:02:54.6]} 11... Nc6 {[%clk 0:02:05.1]} 12. Ng3 {[%clk 0:02:55.6]} 12...
g6 {[%clk 0:01:59.2]} 13. Nd5 {[%clk 0:02:55.6]} 13... Nxd5 {[%clk 0:01:59.4]}
14. exd5 {[%clk 0:02:56.2]} 14... Ne5 {[%clk 0:02:00.9]} 15. Be2 {[%clk
0:02:56.4]} 15... f5 {[%clk 0:01:55.3]} 16. Qd2 {[%clk 0:02:50.7]} 16... Nf7
{[%clk 0:01:54.4]} 17. f4 {[%clk 0:02:48.3]} 17... Bg7 {[%clk 0:01:55.3]} 18. c3
{[%clk 0:02:48.5]} 18... Bd7 {[%clk 0:01:55.8]} 19. a5 {[%clk 0:02:46.9]} 19...
b5 {[%clk 0:01:56.2]} 20. axb6 {[%clk 0:02:47.6]} 20... Qxb6 {[%clk 0:01:57.7]}
21. b4 {[%clk 0:02:45.5]} 21... Bb5 {[%clk 0:01:34.4]} 22. bxc5 {[%clk
0:02:41.6]} 22... dxc5 {[%clk 0:01:31.6]} 23. Rab1 {[%clk 0:02:39.5]} 23... Nd6
{[%clk 0:01:21]} 24. c4 {[%clk 0:02:32.4]} 24... Rxe3 {[%clk 0:01:20.3]} 25.
cxb5 {[%clk 0:02:27.2]} 25... axb5 {[%clk 0:01:18.9]} 26. Kh1 {[%clk 0:02:20]}
26... Bd4 {[%clk 0:01:16.5]} 27. Rfc1 {[%clk 0:02:15.3]} 27... b4 {[%clk
0:01:13.8]} 28. Nf1 {[%clk 0:02:12]} 28... Ne4 {[%clk 0:01:07.4]} 29. Qe1 {[%clk
0:02:04.6]} 29... Rc3 {[%clk 0:00:45.4]} 30. Rxc3 {[%clk 0:01:59]} 30... Bxc3
{[%clk 0:00:47.3]} 31. Qh4 {[%clk 0:01:55.6]} 31... c4 {[%clk 0:00:45.5]} 32. h3
{[%clk 0:01:48.1]} 32... Qd4 {[%clk 0:00:39.7]} 33. Qe7 {[%clk 0:01:36.1]} 33...
Nf2+ {[%clk 0:00:36.8]} 34. Kh2 {[%clk 0:01:36.8]} 34... Qxf4+ {[%clk
0:00:37.6]} 35. g3 {[%clk 0:01:37.8]} 35... Qe5 {[%clk 0:00:34.8]} 36. Qxe5
{[%clk 0:01:34.7]} 36... Bxe5 {[%clk 0:00:36.7]} 37. Bxc4 {[%clk 0:01:36]} 37...
Bc3 {[%clk 0:00:34.1]} 38. Ne3 {[%clk 0:01:34.9]} 38... Ne4 {[%clk 0:00:32.4]}
39. Nc2 {[%clk 0:01:35.7]} 39... Rb8 {[%clk 0:00:31.3]} 40. d6+ {[%clk
0:01:31.8]} 40... Kf8 {[%clk 0:00:31.3]} 41. Rd1 {[%clk 0:01:16.8]} 41... Be5
{[%clk 0:00:23.6]} 42. d7 {[%clk 0:01:15]} 42... Bxg3+ {[%clk 0:00:24.7]} 43.
Kg2 {[%clk 0:01:16.2]} 43... Bd6 {[%clk 0:00:26.6]} 44. Bb3 {[%clk 0:01:10.4]}
44... Ke7 {[%clk 0:00:26.4]} 45. Nd4 {[%clk 0:01:09.7]} 45... Kxd7 {[%clk
0:00:22.5]} 46. Ba4+ {[%clk 0:01:10.7]} 46... Kc7 {[%clk 0:00:21.3]} 47. Rc1+
{[%clk 0:01:11.6]} 47... Kb7 {[%clk 0:00:21.8]} 48. Bc6+ {[%clk 0:01:11.8]}
48... Kb6 {[%clk 0:00:22.8]} 49. Bxe4 {[%clk 0:01:11.8]} 49... Bc5 {[%clk
0:00:22.1]} 50. Nc6 {[%clk 0:01:09.6]} 50... Rc8 {[%clk 0:00:20.4]} 51. Bf3
{[%clk 0:01:10.6]} 51... Rxc6 {[%clk 0:00:21.5]} 52. Bxc6 {[%clk 0:01:11.3]}
52... Kxc6 {[%clk 0:00:23.4]} 53. Kf3 {[%clk 0:01:10.5]} 53... Kd5 {[%clk
0:00:25.3]} 54. Ke2 {[%clk 0:01:11.5]} 54... Bd4 {[%clk 0:00:26.4]} 55. Kd3
{[%clk 0:01:12.2]} 55... Bc3 {[%clk 0:00:27.6]} 56. Rb1 {[%clk 0:01:07.4]} 56...
Ke5 {[%clk 0:00:28.5]} 57. Kc4 {[%clk 0:01:06.9]} 57... Kf4 {[%clk 0:00:29.8]}
58. Rd1 {[%clk 0:01:08.2]} 58... h5 {[%clk 0:00:30]} 59. Rd6 {[%clk 0:01:08.6]}
59... g5 {[%clk 0:00:31.2]} 60. Rd3 {[%clk 0:01:09.2]} 60... h4 {[%clk
0:00:32.2]} 61. Kd5 {[%clk 0:01:09.2]} 61... g4 {[%clk 0:00:33.3]} 62. Rd1
{[%clk 0:01:00.5]} 62... Kg3 {[%clk 0:00:29.9]} 63. Ke6 {[%clk 0:01:01]} 63...
Kxh3 {[%clk 0:00:30.1]} 64. Kxf5 {[%clk 0:01:02.3]} 64... g3 {[%clk 0:00:32]}
65. Kf4 {[%clk 0:01:03.7]} 65... Kg2 {[%clk 0:00:32.6]} 66. Rc1 {[%clk
0:01:03.7]} 66... h3 {[%clk 0:00:32.4]} 67. Rc2+ {[%clk 0:01:04.5]} 67... Kf1
{[%clk 0:00:28.1]} 68. Kxg3 {[%clk 0:01:05]} 68... Be5+ {[%clk 0:00:27.5]} 69.
Kxh3 {[%clk 0:00:53.9]} 69... Bc3 {[%clk 0:00:28.1]} 70. Kg3 {[%clk 0:00:54.2]}
70... Ke1 {[%clk 0:00:22.9]} 71. Kf3 {[%clk 0:00:55.3]} 71... Kd1 {[%clk
0:00:24.2]} 72. Rg2 {[%clk 0:00:50.9]} 72... b3 {[%clk 0:00:24.9]} 73. Ke3
{[%clk 0:00:50.6]} 73... b2 {[%clk 0:00:25]} 74. Rg1+ {[%clk 0:00:51.2]} 74...
Kc2 {[%clk 0:00:25.4]} 75. Rg2+ {[%clk 0:00:51.5]} 75... Kb3 {[%clk 0:00:24.9]}
76. Rxb2+ {[%clk 0:00:50.7]} 76... Bxb2 {[%clk 0:00:25.6]} 1/2-1/2

[Event "*** Titled Tuesday 3|2 Blitz"]
[Site "Chess.com"]
[Date "2017.05.02"]
[Round "10"]
[White "Alexander_Donchenko"]
[Black "grzechu96"]
[Result "0-1"]
[WhiteElo "2506"]
[BlackElo "2404"]
[TimeControl "180+2"]
[EndTime "15:19:03 PDT"]
[Termination "grzechu96 won by resignation"]

1. Nf3 {[%clk 0:03:02]} 1... Nf6 {[%clk 0:02:59.5]} 2. c4 {[%clk 0:03:03.7]}
2... g6 {[%clk 0:03:00.7]} 3. Nc3 {[%clk 0:03:05.1]} 3... d5 {[%clk 0:03:02.2]}
4. cxd5 {[%clk 0:03:06.6]} 4... Nxd5 {[%clk 0:03:04.1]} 5. h4 {[%clk 0:03:08.1]}
5... Bg7 {[%clk 0:03:04.3]} 6. e4 {[%clk 0:03:09.5]} 6... Nxc3 {[%clk
0:03:05.1]} 7. dxc3 {[%clk 0:03:11.4]} 7... Qxd1+ {[%clk 0:03:05.6]} 8. Kxd1
{[%clk 0:03:13.3]} 8... O-O {[%clk 0:02:55.6]} 9. h5 {[%clk 0:03:12.1]} 9... Bg4
{[%clk 0:02:53.4]} 10. Kc2 {[%clk 0:03:07.1]} 10... Bxh5 {[%clk 0:02:36.4]} 11.
Nd4 {[%clk 0:03:08.2]} 11... Bg4 {[%clk 0:02:36]} 12. f3 {[%clk 0:02:57.5]}
12... Bd7 {[%clk 0:02:36.2]} 13. Bc4 {[%clk 0:02:58.2]} 13... Nc6 {[%clk
0:02:27.3]} 14. Nxc6 {[%clk 0:02:55]} 14... Bxc6 {[%clk 0:02:28]} 15. Bf4 {[%clk
0:02:56.7]} 15... Rac8 {[%clk 0:02:28.2]} 16. a4 {[%clk 0:02:56.9]} 16... Rfd8
{[%clk 0:02:27.1]} 17. b4 {[%clk 0:02:56]} 17... Be8 {[%clk 0:02:09]} 18. Be3
{[%clk 0:02:51.1]} 18... a6 {[%clk 0:02:07.7]} 19. Bd5 {[%clk 0:02:48.7]} 19...
c6 {[%clk 0:02:08.2]} 20. Bc4 {[%clk 0:02:49.7]} 20... b5 {[%clk 0:02:06.9]} 21.
Bb3 {[%clk 0:02:43.8]} 21... Be5 {[%clk 0:01:48.2]} 22. axb5 {[%clk 0:02:38.7]}
22... cxb5 {[%clk 0:01:46.5]} 23. Bc5 {[%clk 0:02:37.4]} 23... Bd6 {[%clk
0:01:47.7]} 24. Rxa6 {[%clk 0:02:31.7]} 24... Bxc5 {[%clk 0:01:48.1]} 25. bxc5
{[%clk 0:02:33.6]} 25... Rxc5 {[%clk 0:01:49.5]} 26. Kb2 {[%clk 0:02:29.1]}
26... Rd2+ {[%clk 0:01:48.2]} 27. Ka3 {[%clk 0:02:25.1]} 27... Kg7 {[%clk
0:01:08.9]} 28. Kb4 {[%clk 0:02:24.5]} 28... Rc7 {[%clk 0:01:09.5]} 29. Rg1
{[%clk 0:02:11.9]} 29... Bd7 {[%clk 0:01:08.8]} 30. Rb6 {[%clk 0:02:10.5]} 30...
Rb2 {[%clk 0:00:54.7]} 31. Ka3 {[%clk 0:02:07.9]} 31... Re2 {[%clk 0:00:54.1]}
32. Kb4 {[%clk 0:02:08.4]} 32... Re3 {[%clk 0:00:51.9]} 33. Rc1 {[%clk
0:02:08.3]} 33... Re2 {[%clk 0:00:53.1]} 34. Rg1 {[%clk 0:02:07.9]} 34... Rb2
{[%clk 0:00:52.4]} 35. Ka3 {[%clk 0:02:08.3]} 35... Rd2 {[%clk 0:00:52.7]} 36.
Kb4 {[%clk 0:02:09.3]} 36... h5 {[%clk 0:00:53.5]} 37. e5 {[%clk 0:01:56.9]}
37... Re2 {[%clk 0:00:51.1]} 38. e6 {[%clk 0:01:55.5]} 38... fxe6 {[%clk
0:00:50.9]} 39. g3 {[%clk 0:01:52.5]} 39... Re3 {[%clk 0:00:51.3]} 40. Rd1
{[%clk 0:01:50.3]} 40... Rcxc3 {[%clk 0:00:46.7]} 41. Ba2 {[%clk 0:01:50.5]}
41... Rc7 {[%clk 0:00:46.6]} 42. Rb8 {[%clk 0:01:43.8]} 42... Rxf3 {[%clk
0:00:44]} 43. Rd8 {[%clk 0:01:44.5]} 43... Bc6 {[%clk 0:00:42.7]} 44. Bxe6
{[%clk 0:01:45.4]} 44... Rxg3 {[%clk 0:00:39.4]} 45. Ka5 {[%clk 0:01:37]} 45...
Be4 {[%clk 0:00:31.9]} 46. Rf1 {[%clk 0:01:35.3]} 46... Rf3 {[%clk 0:00:27.4]}
47. Re1 {[%clk 0:01:31.4]} 47... Bf5 {[%clk 0:00:27.1]} 48. Bd5 {[%clk
0:01:29.2]} 48... e6 {[%clk 0:00:26.6]} 49. Bxf3 {[%clk 0:01:28.3]} 49... Rc3
{[%clk 0:00:20.6]} 50. Bd1 {[%clk 0:01:19.3]} 50... Rc1 {[%clk 0:00:20.6]} 51.
Kxb5 {[%clk 0:01:17.7]} 51... h4 {[%clk 0:00:22]} 52. Rh1 {[%clk 0:01:16.4]}
52... h3 {[%clk 0:00:23.1]} 53. Kb4 {[%clk 0:01:14.1]} 53... g5 {[%clk
0:00:21.2]} 54. Kb3 {[%clk 0:01:07.5]} 54... g4 {[%clk 0:00:21.8]} 55. Kb2
{[%clk 0:01:08.6]} 55... Rb1+ {[%clk 0:00:22.9]} 56. Ka2 {[%clk 0:01:08.9]}
56... g3 {[%clk 0:00:22.8]} 57. Rg1 {[%clk 0:00:46.5]} 57... g2 {[%clk
0:00:23.2]} 58. Rd2 {[%clk 0:00:35.6]} 58... Rb4 {[%clk 0:00:23.2]} 59. Bf3
{[%clk 0:00:27.6]} 59... Be4 {[%clk 0:00:16.2]} 60. Ka3 {[%clk 0:00:17.8]} 60...
Bxf3 {[%clk 0:00:12.2]} 61. Kxb4 {[%clk 0:00:18.8]} 61... Kh6 {[%clk 0:00:09.7]}
62. Rf2 {[%clk 0:00:16.4]} 62... h2 {[%clk 0:00:10.1]} 63. Rgxg2 {[%clk
0:00:11]} 63... Bxg2 {[%clk 0:00:10.3]} 64. Rxg2 {[%clk 0:00:12.9]} 64... h1=Q
{[%clk 0:00:11.3]} 65. Re2 {[%clk 0:00:14.8]} 65... Qb7+ {[%clk 0:00:11.6]} 66.
Kc3 {[%clk 0:00:15.8]} 66... Qc6+ {[%clk 0:00:12.1]} 67. Kd4 {[%clk 0:00:16.9]}
67... Qd5+ {[%clk 0:00:13.4]} 68. Ke3 {[%clk 0:00:18.3]} 68... Kg6 {[%clk
0:00:14.7]} 69. Rf2 {[%clk 0:00:19.7]} 69... Qc5+ {[%clk 0:00:15.3]} 70. Ke2
{[%clk 0:00:20.8]} 70... Kg5 {[%clk 0:00:15.5]} 71. Rf7 {[%clk 0:00:21.4]} 71...
Qc4+ {[%clk 0:00:16]} 72. Ke3 {[%clk 0:00:22.6]} 72... Qc5+ {[%clk 0:00:16.6]}
73. Ke4 {[%clk 0:00:23.1]} 73... Qd5+ {[%clk 0:00:17.9]} 74. Ke3 {[%clk
0:00:24.5]} 74... Kg6 {[%clk 0:00:19.4]} 75. Rf2 {[%clk 0:00:24]} 75... Qc5+
{[%clk 0:00:20.2]} 76. Ke2 {[%clk 0:00:25.4]} 76... Qb5+ {[%clk 0:00:19.3]} 77.
Ke3 {[%clk 0:00:26.1]} 77... Qb3+ {[%clk 0:00:20.8]} 78. Ke4 {[%clk 0:00:27.2]}
78... Qb7+ {[%clk 0:00:21.9]} 79. Ke3 {[%clk 0:00:26.5]} 79... Kg5 {[%clk
0:00:22.9]} 80. Rf1 {[%clk 0:00:24.7]} 80... Qb3+ {[%clk 0:00:22.9]} 81. Kd2
{[%clk 0:00:23]} 81... Qb2+ {[%clk 0:00:23]} 82. Ke3 {[%clk 0:00:22.2]} 82...
Qc3+ {[%clk 0:00:24.3]} 83. Ke2 {[%clk 0:00:23.4]} 83... Qc4+ {[%clk 0:00:25.7]}
84. Ke1 {[%clk 0:00:24.7]} 84... Qxf1+ {[%clk 0:00:26.9]} 85. Kxf1 {[%clk
0:00:26.6]} 85... Kf4 {[%clk 0:00:28.2]} 86. Ke1 {[%clk 0:00:27.6]} 86... Ke3
{[%clk 0:00:28.9]} 87. Kd1 {[%clk 0:00:28.9]} 87... e5 {[%clk 0:00:29.7]} 88.
Ke1 {[%clk 0:00:29.5]} 88... e4 {[%clk 0:00:31.2]} 89. Kf1 {[%clk 0:00:31]}
89... Kd2 {[%clk 0:00:32.5]} 0-1

[Event "*** Titled Tuesday 3|2 Blitz"]
[Site "Chess.com"]
[Date "2017.05.02"]
[Round "10"]
[White "JusticeBot"]
[Black "aa175"]
[Result "1-0"]
[WhiteElo "2490"]
[BlackElo "1828"]
[TimeControl "180+2"]
[EndTime "15:24:19 PDT"]
[Termination "JusticeBot won by checkmate"]

1. e4 {[%clk 0:03:02]} 1... e5 {[%clk 0:02:58.8]} 2. Nf3 {[%clk 0:03:00.7]} 2...
Nc6 {[%clk 0:02:59.4]} 3. Bc4 {[%clk 0:03:01.7]} 3... Bc5 {[%clk 0:02:56.9]} 4.
b4 {[%clk 0:03:02.4]} 4... Bxb4 {[%clk 0:02:54.6]} 5. c3 {[%clk 0:03:03.8]} 5...
Bc5 {[%clk 0:02:54.9]} 6. d4 {[%clk 0:03:01]} 6... exd4 {[%clk 0:02:56]} 7. cxd4
{[%clk 0:03:02.3]} 7... Bb4+ {[%clk 0:02:56.7]} 8. Nbd2 {[%clk 0:03:03.2]} 8...
Nf6 {[%clk 0:02:55]} 9. e5 {[%clk 0:02:50.2]} 9... Ne4 {[%clk 0:02:49.2]} 10. d5
{[%clk 0:02:34.2]} 10... Nxe5 {[%clk 0:02:40.2]} 11. Nxe5 {[%clk 0:02:34.7]}
11... Qf6 {[%clk 0:02:37.9]} 12. O-O {[%clk 0:02:32]} 12... Qxe5 {[%clk
0:02:32.7]} 13. Nxe4 {[%clk 0:02:22.6]} 13... Qxe4 {[%clk 0:02:31.4]} 14. Ba3
{[%clk 0:01:13]} 14... Qxc4 {[%clk 0:02:29.6]} 15. Re1+ {[%clk 0:01:14.2]} 15...
Kd8 {[%clk 0:02:17.6]} 16. Qf3 {[%clk 0:01:10.9]} 16... Bxa3 {[%clk 0:02:10.2]}
17. Qxa3 {[%clk 0:01:04.1]} 17... d6 {[%clk 0:01:59.5]} 18. Qf3 {[%clk 0:01:04]}
18... Bd7 {[%clk 0:01:05.3]} 19. Qxf7 {[%clk 0:01:03.6]} 19... c6 {[%clk
0:00:58.9]} 20. Re7 {[%clk 0:00:54.1]} 20... Qg4 {[%clk 0:00:49.9]} 21. h3
{[%clk 0:00:50.1]} 21... Qf5 {[%clk 0:00:48.8]} 22. Qxg7 {[%clk 0:00:51.4]}
22... Kc7 {[%clk 0:00:49.2]} 23. g4 {[%clk 0:00:51.7]} 23... Rhg8 {[%clk
0:00:09.6]} 24. gxf5 {[%clk 0:00:53.6]} 24... Rxg7+ {[%clk 0:00:07.6]} 25. Rxg7
{[%clk 0:00:55.5]} 25... h5 {[%clk 0:00:08]} 26. Re1 {[%clk 0:00:56]} 26... cxd5
{[%clk 0:00:08.8]} 27. Ree7 {[%clk 0:00:57.1]} 27... Rd8 {[%clk 0:00:10.4]} 28.
f6 {[%clk 0:00:58.7]} 28... d4 {[%clk 0:00:11.1]} 29. f7 {[%clk 0:00:56.1]}
29... d3 {[%clk 0:00:11.9]} 30. Rxd7+ {[%clk 0:00:57.4]} 30... Kb6 {[%clk
0:00:03.7]} 31. Rxd8 {[%clk 0:00:57.9]} 31... d2 {[%clk 0:00:04.9]} 32. Rxd6+
{[%clk 0:00:59.3]} 32... Kc5 {[%clk 0:00:05.5]} 33. Rxd2 {[%clk 0:01:01.2]}
33... Kc6 {[%clk 0:00:06.8]} 34. f8=Q {[%clk 0:01:02.9]} 34... Kb5 {[%clk
0:00:08.4]} 35. Qa3 {[%clk 0:01:03.7]} 35... Kb6 {[%clk 0:00:09.1]} 36. Rxb7+
{[%clk 0:01:05.1]} 36... Kxb7 {[%clk 0:00:10]} 37. Rd6 {[%clk 0:01:06.5]} 37...
Ka8 {[%clk 0:00:11.4]} 38. Qa6 {[%clk 0:01:07.5]} 38... Kb8 {[%clk 0:00:13.1]}
39. Rc6 {[%clk 0:01:08.8]} 39... Ka8 {[%clk 0:00:14.6]} 40. Kg2 {[%clk
0:01:10.5]} 40... Kb8 {[%clk 0:00:15.4]} 41. Kg3 {[%clk 0:01:12.4]} 41... Ka8
{[%clk 0:00:16.8]} 42. Kh4 {[%clk 0:01:14.3]} 42... Kb8 {[%clk 0:00:18.7]} 43.
Kxh5 {[%clk 0:01:16.2]} 43... Ka8 {[%clk 0:00:20.6]} 44. Kg5 {[%clk 0:01:18]}
44... Kb8 {[%clk 0:00:22.5]} 45. h4 {[%clk 0:01:19.9]} 45... Ka8 {[%clk
0:00:24.4]} 46. h5 {[%clk 0:01:21.8]} 46... Kb8 {[%clk 0:00:25.9]} 47. h6 {[%clk
0:01:23.7]} 47... Ka8 {[%clk 0:00:27.8]} 48. h7 {[%clk 0:01:25.6]} 48... Kb8
{[%clk 0:00:29.7]} 49. f4 {[%clk 0:01:27.5]} 49... Ka8 {[%clk 0:00:31.6]} 50. f5
{[%clk 0:01:29.4]} 50... Kb8 {[%clk 0:00:33.2]} 51. f6 {[%clk 0:01:31.3]} 51...
Ka8 {[%clk 0:00:35.1]} 52. f7 {[%clk 0:01:33.1]} 52... Kb8 {[%clk 0:00:37]} 53.
Kg6 {[%clk 0:01:35]} 53... Ka8 {[%clk 0:00:38.9]} 54. Kg7 {[%clk 0:01:36.9]}
54... Kb8 {[%clk 0:00:40.8]} 55. Kg8 {[%clk 0:01:38.8]} 55... Ka8 {[%clk
0:00:42.7]} 56. h8=N {[%clk 0:01:40.7]} 56... Kb8 {[%clk 0:00:44.6]} 57. Ng6
{[%clk 0:01:42.5]} 57... Ka8 {[%clk 0:00:46.5]} 58. Kg7 {[%clk 0:01:43.5]} 58...
Kb8 {[%clk 0:00:48.4]} 59. Kf6 {[%clk 0:01:45.4]} 59... Ka8 {[%clk 0:00:50.3]}
60. a4 {[%clk 0:01:47.3]} 60... Kb8 {[%clk 0:00:52.2]} 61. a5 {[%clk 0:01:49.2]}
61... Ka8 {[%clk 0:00:54.1]} 62. Ne5 {[%clk 0:01:51.1]} 62... Kb8 {[%clk
0:00:56]} 63. Nc4 {[%clk 0:01:53]} 63... Ka8 {[%clk 0:00:57.9]} 64. Ne3 {[%clk
0:01:54.1]} 64... Kb8 {[%clk 0:00:59.8]} 65. Ng2 {[%clk 0:01:55.2]} 65... Ka8
{[%clk 0:01:01.7]} 66. Ke7 {[%clk 0:01:57.1]} 66... Kb8 {[%clk 0:01:03.6]} 67.
Ke8 {[%clk 0:01:59]} 67... Ka8 {[%clk 0:01:05.5]} 68. f8=B {[%clk 0:02:00.9]}
68... Kb8 {[%clk 0:01:07.4]} 69. Qc4 {[%clk 0:02:02.8]} 69... Ka8 {[%clk
0:01:09.3]} 70. a6 {[%clk 0:02:01.7]} 70... Kb8 {[%clk 0:01:11.2]} 71. Kf7
{[%clk 0:02:02.5]} 71... Ka8 {[%clk 0:01:13.1]} 72. Ke6 {[%clk 0:02:04.4]} 72...
Kb8 {[%clk 0:01:15]} 73. Kd5 {[%clk 0:02:06.3]} 73... Ka8 {[%clk 0:01:16.9]} 74.
Kc5 {[%clk 0:02:08.2]} 74... Kb8 {[%clk 0:01:18.8]} 75. Kb5 {[%clk 0:02:09.9]}
75... Ka8 {[%clk 0:01:20.7]} 76. Bc5 {[%clk 0:02:03.9]} 76... Kb8 {[%clk
0:01:21.4]} 77. Rc8+ {[%clk 0:02:02.7]} 77... Kxc8 {[%clk 0:01:22]} 78. Qf4
{[%clk 0:02:04.6]} 78... Kd8 {[%clk 0:01:22]} 79. Qf7 {[%clk 0:02:03.1]} 79...
Kc8 {[%clk 0:01:22.5]} 80. Bxa7 {[%clk 0:02:05]} 80... Kd8 {[%clk 0:01:23.3]}
81. Kc6 {[%clk 0:02:06.9]} 81... Kc8 {[%clk 0:01:24.4]} 82. Ne3 {[%clk
0:02:08.8]} 82... Kd8 {[%clk 0:01:25.5]} 83. Nc4 {[%clk 0:02:10.7]} 83... Kc8
{[%clk 0:01:26.7]} 84. Nb6+ {[%clk 0:02:10.2]} 84... Kd8 {[%clk 0:01:27.6]} 85.
Qe8+ {[%clk 0:02:12.1]} 85... Kxe8 {[%clk 0:01:28.5]} 86. Bb8 {[%clk 0:02:14]}
86... Kf7 {[%clk 0:01:29.3]} 87. a7 {[%clk 0:02:15.9]} 87... Ke6 {[%clk
0:01:31.2]} 88. a8=N {[%clk 0:02:15.9]} 88... Kf5 {[%clk 0:01:33.1]} 89. Nc7
{[%clk 0:02:16.5]} 89... Ke4 {[%clk 0:01:35]} 90. Nb5 {[%clk 0:02:18.4]} 90...
Kd3 {[%clk 0:01:31.4]} 91. Kc5 {[%clk 0:02:20.3]} 91... Ke4 {[%clk 0:01:32.2]}
92. Kb4 {[%clk 0:02:22.2]} 92... Kd3 {[%clk 0:01:32.9]} 93. Bh2 {[%clk
0:02:24.1]} 93... Ke4 {[%clk 0:01:34.6]} 94. Nd6+ {[%clk 0:02:25.1]} 94... Kd3
{[%clk 0:01:36.5]} 95. Kc5 {[%clk 0:02:25.3]} 95... Ke3 {[%clk 0:01:37.4]} 96.
Nd5+ {[%clk 0:02:25.8]} 96... Kd3 {[%clk 0:01:38.5]} 97. Bf4 {[%clk 0:02:26]}
97... Ke2 {[%clk 0:01:39.2]} 98. Kd4 {[%clk 0:02:25.7]} 98... Kf3 {[%clk
0:01:41.1]} 99. Be3 {[%clk 0:02:21]} 99... Ke2 {[%clk 0:01:41.9]} 100. Ke4
{[%clk 0:02:20.7]} 100... Kd1 {[%clk 0:01:42.6]} 101. Kd3 {[%clk 0:02:21.7]}
101... Ke1 {[%clk 0:01:43.5]} 102. Nf4 {[%clk 0:02:22.3]} 102... Kf1 {[%clk
0:01:44.6]} 103. Ne4 {[%clk 0:02:23.1]} 103... Ke1 {[%clk 0:01:45.9]} 104. Ng3
{[%clk 0:02:18.9]} 104... Kd1 {[%clk 0:01:44.9]} 105. Nh3 {[%clk 0:02:17.7]}
105... Ke1 {[%clk 0:01:45.7]} 106. Bd2+ {[%clk 0:02:19.1]} 106... Kd1 {[%clk
0:00:31.8]} 107. Bc3 {[%clk 0:02:21]} 107... Kc1 {[%clk 0:00:32.7]} 108. Nf2
{[%clk 0:02:06.3]} 108... Kb1 {[%clk 0:00:32.2]} 109. Ne2 {[%clk 0:02:08.2]}
109... Ka2 {[%clk 0:00:31.9]} 110. Kc2 {[%clk 0:02:08.7]} 110... Ka3 {[%clk
0:00:32.8]} 111. Nd4 {[%clk 0:02:09.3]} 111... Ka4 {[%clk 0:00:34.7]} 112. Nd3
{[%clk 0:02:10.4]} 112... Ka3 {[%clk 0:00:35.7]} 113. Nc5 {[%clk 0:02:12]}
113... Ka2 {[%clk 0:00:36.4]} 114. Bb4 {[%clk 0:02:13.4]} 114... Ka1 {[%clk
0:00:36.7]} 115. Ndb3+ {[%clk 0:02:14]} 115... Ka2 {[%clk 0:00:37.4]} 116. Nc1+
{[%clk 0:02:15.9]} 116... Ka1 {[%clk 0:00:36.4]} 117. Ne2 {[%clk 0:02:13.7]}
117... Ka2 {[%clk 0:00:37.3]} 118. Na6 {[%clk 0:02:12.6]} 118... Ka1 {[%clk
0:00:16.9]} 119. Nc7 {[%clk 0:02:14.5]} 119... Ka2 {[%clk 0:00:18.1]} 120. Ne8
{[%clk 0:02:16.4]} 120... Ka1 {[%clk 0:00:20]} 121. Ng7 {[%clk 0:02:18.3]}
121... Ka2 {[%clk 0:00:21.9]} 122. Nh5 {[%clk 0:02:20.2]} 122... Ka1 {[%clk
0:00:23.8]} 123. Nhg3 {[%clk 0:02:22.1]} 123... Ka2 {[%clk 0:00:25]} 124. Nf1
{[%clk 0:02:24]} 124... Ka1 {[%clk 0:00:25.9]} 125. Nd2 {[%clk 0:02:25.9]}
125... Ka2 {[%clk 0:00:26.2]} 126. Bc3 {[%clk 0:02:25.7]} 126... Ka3 {[%clk
0:00:26.9]} 127. Kd3 {[%clk 0:02:20.7]} 127... Ka4 {[%clk 0:00:27.9]} 128. Kc4
{[%clk 0:02:22]} 128... Ka3 {[%clk 0:00:29.1]} 129. Kb5 {[%clk 0:02:22.6]}
129... Ka2 {[%clk 0:00:29.5]} 130. Nb1 {[%clk 0:02:15.3]} 130... Kxb1 {[%clk
0:00:20.9]} 131. Nd4 {[%clk 0:02:08.3]} 131... Kc1 {[%clk 0:00:21.5]} 132. Kc4
{[%clk 0:02:08.6]} 132... Kd1 {[%clk 0:00:23.4]} 133. Kd3 {[%clk 0:02:08.8]}
133... Kc1 {[%clk 0:00:25.3]} 134. Ke2 {[%clk 0:02:09.5]} 134... Kb1 {[%clk
0:00:26.7]} 135. Kd2 {[%clk 0:02:09.8]} 135... Ka2 {[%clk 0:00:28.6]} 136. Kc2
{[%clk 0:02:05.9]} 136... Ka3 {[%clk 0:00:30.5]} 137. Kd3 {[%clk 0:02:02]}
137... Ka4 {[%clk 0:00:30.1]} 138. Kc4 {[%clk 0:02:02.8]} 138... Ka3 {[%clk
0:00:31.2]} 139. Kb5 {[%clk 0:02:03.8]} 139... Ka2 {[%clk 0:00:31.3]} 140. Kb4
{[%clk 0:02:02.8]} 140... Kb1 {[%clk 0:00:31.9]} 141. Bd2 {[%clk 0:02:03.7]}
141... Kb2 {[%clk 0:00:31.1]} 142. Be3 {[%clk 0:02:04.5]} 142... Kb1 {[%clk
0:00:33]} 143. Kb3 {[%clk 0:02:04.1]} 143... Ka1 {[%clk 0:00:34.3]} 144. Bf4
{[%clk 0:01:37.2]} 144... Kb1 {[%clk 0:00:35.3]} 145. Bg5 {[%clk 0:01:39.1]}
145... Ka1 {[%clk 0:00:35.9]} 146. Bh6 {[%clk 0:01:41]} 146... Kb1 {[%clk
0:00:37.8]} 147. Be3 {[%clk 0:01:42.9]} 147... Ka1 {[%clk 0:00:39.7]} 148. Nc2+
{[%clk 0:00:20.2]} 148... Kb1 {[%clk 0:00:41.6]} 149. Na3+ {[%clk 0:00:22.1]}
149... Ka1 {[%clk 0:00:41.4]} 150. Nb5 {[%clk 0:00:12.8]} 150... Kb1 {[%clk
0:00:42.4]} 151. Bh6 {[%clk 0:00:14.7]} 151... Ka1 {[%clk 0:00:42.8]} 152. Bg5
{[%clk 0:00:04.3]} 152... Kb1 {[%clk 0:00:43.4]} 153. Na3+ {[%clk 0:00:02.5]}
153... Ka1 {[%clk 0:00:44.3]} 154. Bf6# {[%clk 0:00:02.2]} 1-0